Workbook

Sheet HOJ (hidden)
B2: UNIDAD EJECUTORA | C2: ACTIVIDAD | D2: FUENTE DE FINANCIAMIENTO | E2: GENÉRICA DE GASTO | F2: ESPECÍFICA DE GASTO | G2: PIA | H2: PIM | I2: SIAF
I3: CERTIFICACIÓN | J3: COMPROMISO ANUAL | K3: EJECUCIÓN | L3: % CERTIFICACIÓN SIAF/PIM | M3: % COMPROMISO ANUAL SIAF/PIM | N3: % EJECUCIÓN
B4: 300 | C4: 5005229 | D4: 1 | E4: 23 | F4: 23 1 5 1 2 | G4: 0 | H4: 6500 | I4: 3046 | J4: 3046 | K4: 3046 | L4: =+I4/H4 -> 0.4686153846 | M4: =+J4/H4 -> 0.4686153846 | N4: =+K4/H4 -> 0.4686153846
B5: 300 | C5: 5005229 | D5: 1 | E5: 23 | F5: 23 1 9 1 2 | G5: 0 | H5: 13000 | I5: 11214.21 | J5: 11214.21 | K5: 10891.57 | L5: =+I5/H5 -> 0.8626315385 | M5: =+J5/H5 -> 0.8626315385 | N5: =+K5/H5 -> 0.8378130769
B6: 300 | C6: 5005229 | D6: 1 | E6: 23 | F6: 23 2 1 299 | G6: 0 | H6: 60345 | I6: 0 | J6: 0 | K6: 0 | L6: 0 | M6: 0 | N6: 0
B7: 300 | C7: 5005229 | D7: 1 | E7: 23 | F7: 23 2 2 4 4 | G7: 0 | H7: 13000 | I7: 12950 | J7: 12950 | K7: 12950 | L7: 0.9961538462 | M7: 0.9961538462 | N7: 0.9961538462
B8: 300 | C8: 5005229 | D8: 1 | E8: 23 | F8: 23 2 7 3 2 | G8: 0 | H8: 3000 | I8: 3000 | J8: 3000 | K8: 0 | L8: 1 | M8: 1 | N8: 0
B9: 300 | C9: 5005229 | D9: 1 | E9: 23 | F9: 23 2 71199 | G9: 200000 | H9: 102655 | I9: 86592.4 | J9: 86592.4 | K9: 49002.4 | L9: 0.843528323 | M9: 0.843528323 | N9: 0.4773503483
B10: 300 | C10: 5005230 | D10: 1 | E10: 23 | F10: 23 1 5 1 2 | G10: 0 | H10: 13000 | I10: 8027.92 | J10: 8027.92 | K10: 8027.92 | L10: 0.6175323077 | M10: 0.6175323077 | N10: 0.6175323077
B11: 300 | C11: 5005230 | D11: 1 | E11: 23 | F11: 23 2 1 299 | G11: 0 | H11: 15100 | I11: 0 | J11: 0 | K11: 0 | L11: 0 | M11: 0 | N11: 0
B12: 300 | C12: 5005230 | D12: 1 | E12: 23 | F12: 23 2 2 4 4 | G12: 0 | H12: 3200 | I12: 0 | J12: 0 | K12: 0 | L12: 0 | M12: 0 | N12: 0
B13: 300 | C13: 5005230 | D13: 1 | E13: 23 | F13: 23 2 4 1 5 | G13: 0 | H13: 16000 | I13: 12300 | J13: 12300 | K13: 12300 | L13: 0.76875 | M13: 0.76875 | N13: 0.76875
B14: 300 | C14: 5005230 | D14: 1 | E14: 23 | F14: 23 2 7 299 | G14: 0 | H14: 13840 | I14: 13840 | J14: 13840 | K14: 13840 | L14: 1 | M14: 1 | N14: 1
B15: 300 | C15: 5005230 | D15: 1 | E15: 23 | F15: 23 2 71199 | G15: 571349 | H15: 161209 | I15: 129306.28 | J15: 129306.28 | K15: 78556.28 | L15: 0.8021033565 | M15: 0.8021033565 | N15: 0.48729463
B16: 300 | C16: 5005230 | D16: 1 | E16: 23 | F16: 23 2 8 1 1 | G16: 307496 | H16: 645438 | I16: 413536 | J16: 413536 | K16: 262930.24 | L16: 0.6407060012 | M16: 0.6407060012 | N16: 0.4073671522
B17: 300 | C17: 5005230 | D17: 1 | E17: 23 | F17: 23 2 8 1 2 | G17: 11898 | H17: 20956 | I17: 16218 | J17: 16218 | K17: 9603 | L17: 0.7739072342 | M17: 0.7739072342 | N17: 0.4582458484
B18: 300 | C18: 5005230 | D18: 4 | E18: 23 | F18: 23 1 1 1 1 | G18: 0 | H18: 32000 | I18: 0 | J18: 0 | K18: 0 | L18: 0 | M18: 0 | N18: 0
B19: 300 | C19: 5005230 | D19: 4 | E19: 23 | F19: 23 1 5 1 1 | G19: 0 | H19: 15000 | I19: 0 | J19: 0 | K19: 0 | L19: 0 | M19: 0 | N19: 0
B20: 300 | C20: 5005230 | D20: 4 | E20: 23 | F20: 23 1 5 1 2 | G20: 0 | H20: 65000 | I20: 0 | J20: 0 | K20: 0 | L20: 0 | M20: 0 | N20: 0
B21: 300 | C21: 5005230 | D21: 4 | E21: 23 | F21: 23 1 5 3 1 | G21: 0 | H21: 3800 | I21: 0 | J21: 0 | K21: 0 | L21: 0 | M21: 0 | N21: 0
B22: 300 | C22: 5005230 | D22: 4 | E22: 23 | F22: 23 1 9 1 2 | G22: 0 | H22: 53316 | I22: 35225.96 | J22: 35225.96 | K22: 35225.96 | L22: 0.660701478 | M22: 0.660701478 | N22: 0.660701478
B23: 300 | C23: 5005230 | D23: 4 | E23: 23 | F23: 23 111 1 1 | G23: 0 | H23: 3534 | I23: 2700 | J23: 2700 | K23: 2700 | L23: 0.7640067912 | M23: 0.7640067912 | N23: 0.7640067912
B24: 300 | C24: 5005230 | D24: 4 | E24: 23 | F24: 23 2 2 4 4 | G24: 0 | H24: 201369 | I24: 74411 | J24: 74411 | K24: 37661 | L24: 0.3695255973 | M24: 0.3695255973 | N24: 0.1870248151
B25: 300 | C25: 5005230 | D25: 4 | E25: 23 | F25: 23 2 4 1 5 | G25: 0 | H25: 6000 | I25: 0 | J25: 0 | K25: 0 | L25: 0 | M25: 0 | N25: 0
B26: 300 | C26: 5005230 | D26: 4 | E26: 23 | F26: 23 2 7 299 | G26: 0 | H26: 72660 | I26: 6920 | J26: 6920 | K26: 6920 | L26: 0.09523809524 | M26: 0.09523809524 | N26: 0.09523809524
B27: 300 | C27: 5005230 | D27: 4 | E27: 23 | F27: 23 2 71199 | G27: 0 | H27: 457433 | I27: 152159 | J27: 152159 | K27: 129533 | L27: 0.3326366921 | M27: 0.3326366921 | N27: 0.2831737107
B28: 300 | C28: 5005230 | D28: 4 | E28: 26 | F28: 26 3 2 1 1 | G28: 0 | H28: 18000 | I28: 4515.33 | J28: 4515.33 | K28: 4515.33 | L28: 0.2508516667 | M28: 0.2508516667 | N28: 0.2508516667
B29: 300 | C29: 5005230 | D29: 4 | E29: 26 | F29: 26 3 2 1 2 | G29: 0 | H29: 12000 | I29: 0 | J29: 0 | K29: 0 | L29: 0 | M29: 0 | N29: 0
B30: 300 | C30: 5005230 | D30: 4 | E30: 26 | F30: 26 3 2 2 1 | G30: 0 | H30: 9000 | I30: 0 | J30: 0 | K30: 0 | L30: 0 | M30: 0 | N30: 0
B31: 300 | C31: 5005230 | D31: 4 | E31: 26 | F31: 26 3 2 2 2 | G31: 0 | H31: 3000 | I31: 0 | J31: 0 | K31: 0 | L31: 0 | M31: 0 | N31: 0 | P31: CALLAO | Q31: 31.9
B32: 300 | C32: 5005230 | D32: 4 | E32: 26 | F32: 26 3 2 3 1 | G32: 0 | H32: 102060 | I32: 19641.17 | J32: 19641.17 | K32: 19641.17 | L32: 0.1924472859 | M32: 0.1924472859 | N32: 0.1924472859 | P32: VENTANILLA | Q32: 54.2
B33: 300 | C33: 5005230 | D33: 4 | E33: 26 | F33: 26 3 2 3 3 | G33: 0 | H33: 44720 | I33: 0 | J33: 0 | K33: 0 | L33: 0 | M33: 0 | N33: 0
B34: TOTAL | G34: =+SUM(G4:G33) -> 1090743 | H34: =+SUM(H4:H33) -> 2186135 | I34: 1005603.27 | J34: 1005603.27 | K34: 697343.87 | L34: =+I34/H34 -> 0.4599913866 | M34: =+J34/H34 -> 0.4599913866 | N34: =+K34/H34 -> 0.3189848157
B35: Fuente: REPORTE SIAF 2018

Sheet CALLAO AL 28-06
A6: REPORTE DE EJECUCIÓN PRESUPUESTAL DEL PP PTCD 0051 (ámbito educativo y familiar): POR GENÉRICA DE GASTO 2.3 Y 2.6, ESPECÍFICA DE GASTO Y POR TODA FUENTE DE FINACIAMIENTO (año 2018)
A7: AL 28 /06/18
A9: UNIDAD EJECUTORA | B9: ACTIVIDAD | C9: FUENTE DE FINANCIAMIENTO | D9: GENÉRICA DE GASTO | E9: ESPECÍFICA DE GASTO | F9: NOMBRE DE LA ESPECIFICA | G9: PIA | H9: PIM | I9: SIAF
I10: CERTIFICACIÓN | J10: COMPROMISO ANUAL | K10: EJECUCIÓN | L10: % CERTIFICACIÓN SIAF/PIM | M10: % COMPROMISO ANUAL SIAF/PIM | N10: % EJECUCIÓN
A11: 300 | B11: 5005229 | C11: 1 | D11: 23 | E11: 23 1 5 1 2 | F11: PAPELERIA EN GRAL UTILES Y MATERIALES DE OFICINA | G11: 0 | H11: 6500 | I11: 3046 | J11: 3046 | K11: 3046 | L11: =+I11/H11 -> 0.4686153846 | M11: =+J11/H11 -> 0.4686153846 | N11: =+K11/H11 -> 0.4686153846
A12: 300 | B12: 5005229 | C12: 1 | D12: 23 | E12: 23 1 9 1 2 | F12: MATERIAL DIDACTICO,ACCSESORIOS Y UTILES DE ENSEÑANZA | G12: 0 | H12: 13000 | I12: 11214.21 | J12: 11214.21 | K12: 10891.57 | L12: =+I12/H12 -> 0.8626315385 | M12: =+J12/H12 -> 0.8626315385 | N12: =+K12/H12 -> 0.8378130769
A13: 300 | B13: 5005229 | C13: 1 | D13: 23 | E13: 23 2 1 299 | F13: OTROS GASTOS | G13: 0 | H13: 60345 | I13: 0 | J13: 0 | K13: 0 | L13: 0 | M13: 0 | N13: 0
A14: 300 | B14: 5005229 | C14: 1 | D14: 23 | E14: 23 2 2 4 4 | F14: SERVICIO DE IMPRESIONES ENCUADERNACION Y EMPASTADO | G14: 0 | H14: 13000 | I14: 12950 | J14: 12950 | K14: 12950 | L14: 0.9961538462 | M14: 0.9961538462 | N14: 0.9961538462
A15: 300 | B15: 5005229 | C15: 1 | D15: 23 | E15: 23 2 7 3 2 | F15: RELAIZADO POR PERSONAS NATURALES | G15: 0 | H15: 3000 | I15: 3000 | J15: 3000 | K15: 0 | L15: 1 | M15: 1 | N15: 0
A16: 300 | B16: 5005229 | C16: 1 | D16: 23 | E16: 23 2 71199 | F16: SERVICIOS DIVERSOS | G16: 200000 | H16: 102655 | I16: 86592.4 | J16: 86592.4 | K16: 49002.4 | L16: 0.843528323 | M16: 0.843528323 | N16: 0.4773503483
A17: TOTAL 23 AMBITO FAM RO | G17: =SUM(G11:G16) -> 200000 | H17: =SUM(H11:H16) -> 198500 | I17: 116802.61 | J17: 116802.61 | K17: 75889.97 | L17: 0.5884262469 | M17: 0.5884262469 | N17: 0.3823172292
A18: 300 | B18: 5005230 | C18: 1 | D18: 23 | E18: 23 1 5 1 2 | F18: PAPELERIA EN GRAL UTILES Y MATERIALES DE OFICINA | G18: 0 | H18: 13000 | I18: 8027.92 | J18: 8027.92 | K18: 8027.92 | L18: 0.6175323077 | M18: 0.6175323077 | N18: 0.6175323077
A19: 300 | B19: 5005230 | C19: 1 | D19: 23 | E19: 23 2 1 299 | F19: OTROS GASTOS | G19: 0 | H19: 15100 | I19: 0 | J19: 0 | K19: 0 | L19: 0 | M19: 0 | N19: 0
A20: 300 | B20: 5005230 | C20: 1 | D20: 23 | E20: 23 2 2 4 4 | F20: SERVICIO DE IMPRESIONES ENCUADERNACION Y EMPASTADO | G20: 0 | H20: 3200 | I20: 0 | J20: 0 | K20: 0 | L20: 0 | M20: 0 | N20: 0
A21: 300 | B21: 5005230 | C21: 1 | D21: 23 | E21: 23 2 4 1 5 | F21: DE MAQUINAS Y EQUIPO | G21: 0 | H21: 16000 | I21: 12300 | J21: 12300 | K21: 12300 | L21: 0.76875 | M21: 0.76875 | N21: 0.76875
A22: 300 | B22: 5005230 | C22: 1 | D22: 23 | E22: 23 2 7 299 | F22: OTROS SERVICIOS SIMILARES | G22: 0 | H22: 13840 | I22: 13840 | J22: 13840 | K22: 13840 | L22: 1 | M22: 1 | N22: 1
A23: 300 | B23: 5005230 | C23: 1 | D23: 23 | E23: 23 2 71199 | F23: SERVICIOS DIVERSOS | G23: 571349 | H23: 161209 | I23: 129306.28 | J23: 129306.28 | K23: 78556.28 | L23: 0.8021033565 | M23: 0.8021033565 | N23: 0.48729463
A24: 300 | B24: 5005230 | C24: 1 | D24: 23 | E24: 23 2 8 1 1 | F24: CONTRATO ADMINISTRATIVO DE SERVICIOS | G24: 307496 | H24: 645438 | I24: 413536 | J24: 413536 | K24: 262930.24 | L24: 0.6407060012 | M24: 0.6407060012 | N24: 0.4073671522
A25: 300 | B25: 5005230 | C25: 1 | D25: 23 | E25: 23 2 8 1 2 | F25: CONTRIBUCIONES A ESSALUD DE LOS CAS | G25: 11898 | H25: 20956 | I25: 16218 | J25: 16218 | K25: 9603 | L25: 0.7739072342 | M25: 0.7739072342 | N25: 0.4582458484
A26: TOTAL 23 AMBITO ERDUCATIVO RO | G26: =SUM(G18:G25) -> 890743 | H26: =SUM(H18:H25) -> 888743 | I26: 593228.2 | J26: 593228.2 | K26: 385257.44 | L26: 0.667491277 | M26: 0.667491277 | N26: 0.4334857659
A27: 300 | B27: 5005230 | C27: 4 | D27: 23 | E27: 23 1 1 1 1 | F27: ALIMENTOS Y BEBIDAS PARA CONSUMO HUMANO | G27: 0 | H27: 32000 | I27: 0 | J27: 0 | K27: 0 | L27: 0 | M27: 0 | N27: 0
A28: 300 | B28: 5005230 | C28: 4 | D28: 23 | E28: 23 1 5 1 1 | F28: REPUESTOS Y ACCSESORIOS | G28: 0 | H28: 15000 | I28: 0 | J28: 0 | K28: 0 | L28: 0 | M28: 0 | N28: 0
A29: 300 | B29: 5005230 | C29: 4 | D29: 23 | E29: 23 1 5 1 2 | F29: PAPELERIA EN GRAL UTILES Y MATERIALES DE OFICINA | G29: 0 | H29: 65000 | I29: 0 | J29: 0 | K29: 0 | L29: 0 | M29: 0 | N29: 0
A30: 300 | B30: 5005230 | C30: 4 | D30: 23 | E30: 23 1 5 3 1 | F30: ASEO LIMPIEZA Y TOCADOR | G30: 0 | H30: 3800 | I30: 0 | J30: 0 | K30: 0 | L30: 0 | M30: 0 | N30: 0
A31: 300 | B31: 5005230 | C31: 4 | D31: 23 | E31: 23 1 9 1 2 | F31: MATERIAL DIDACTICO,ACCSESORIOS Y UTILES DE ENSEÑANZA | G31: 0 | H31: 53316 | I31: 35225.96 | J31: 35225.96 | K31: 35225.96 | L31: 0.660701478 | M31: 0.660701478 | N31: 0.660701478
A32: 300 | B32: 5005230 | C32: 4 | D32: 23 | E32: 23 111 1 1 | F32: PARA EDIFICIOS Y ESTRUCTURAS | G32: 0 | H32: 3534 | I32: 2700 | J32: 2700 | K32: 2700 | L32: 0.7640067912 | M32: 0.7640067912 | N32: 0.7640067912
A33: 300 | B33: 5005230 | C33: 4 | D33: 23 | E33: 23 2 2 4 4 | F33: SERVICIO DE IMPRESIONES ENCUADERNACION Y EMPASTADO | G33: 0 | H33: 201369 | I33: 74411 | J33: 74411 | K33: 37661 | L33: 0.3695255973 | M33: 0.3695255973 | N33: 0.1870248151
A34: 300 | B34: 5005230 | C34: 4 | D34: 23 | E34: 23 2 4 1 5 | F34: DE MAQUINARIAS Y EQUIPO | G34: 0 | H34: 6000 | I34: 0 | J34: 0 | K34: 0 | L34: 0 | M34: 0 | N34: 0
A35: 300 | B35: 5005230 | C35: 4 | D35: 23 | E35: 23 2 7 299 | F35: OTROS SERVICIOS SIMILARES | G35: 0 | H35: 72660 | I35: 6920 | J35: 6920 | K35: 6920 | L35: 0.09523809524 | M35: 0.09523809524 | N35: 0.09523809524
A36: 300 | B36: 5005230 | C36: 4 | D36: 23 | E36: 23 2 71199 | F36: SERVICIOS DIVERSOS | G36: 0 | H36: 457433 | I36: 152159 | J36: 152159 | K36: 129533 | L36: 0.3326366921 | M36: 0.3326366921 | N36: 0.2831737107
A37: 300 | B37: 5005230 | C37: 4 | D37: 26 | E37: 26 3 2 1 1 | F37: MAQUINAS Y EQUIPO | G37: 0 | H37: 18000 | I37: 4515.33 | J37: 4515.33 | K37: 4515.33 | L37: 0.2508516667 | M37: 0.2508516667 | N37: 0.2508516667
A38: 300 | B38: 5005230 | C38: 4 | D38: 26 | E38: 26 3 2 1 2 | F38: MOBILIARIO | G38: 0 | H38: 12000 | I38: 0 | J38: 0 | K38: 0 | L38: 0 | M38: 0 | N38: 0
A39: 300 | B39: 5005230 | C39: 4 | D39: 26 | E39: 26 3 2 2 1 | F39: MAQUINAS Y EQUIPO PARA IIEE | G39: 0 | H39: 9000 | I39: 0 | J39: 0 | K39: 0 | L39: 0 | M39: 0 | N39: 0
A40: 300 | B40: 5005230 | C40: 4 | D40: 26 | E40: 26 3 2 2 2 | F40: MOBILIARIO PARA IIEE | G40: 0 | H40: 3000 | I40: 0 | J40: 0 | K40: 0 | L40: 0 | M40: 0 | N40: 0
A41: 300 | B41: 5005230 | C41: 4 | D41: 26 | E41: 26 3 2 3 1 | F41: EQUIPOS COMPUTACIONALES Y PERIFERICOS | G41: 0 | H41: 102060 | I41: 19641.17 | J41: 19641.17 | K41: 19641.17 | L41: 0.1924472859 | M41: 0.1924472859 | N41: 0.1924472859
A42: 300 | B42: 5005230 | C42: 4 | D42: 26 | E42: 26 3 2 3 3 | F42: EQUIPOS DE TELECOMUNICACIONES | G42: 0 | H42: 44720 | I42: 0 | J42: 0 | K42: 0 | L42: 0 | M42: 0 | N42: 0
A43: TOTAL 23 Y 26 AMBITO EDUCATIVO DY T | G43: =SUM(G27:G42) -> 0 | H43: =SUM(H27:H42) -> 1098892 | I43: 295572.46 | J43: 295572.46 | K43: 236196.46 | L43: 0.2689731657 | M43: 0.2689731657 | N43: 0.2149405583
A44: TOTAL | G44: =SUM(G11:G16,G18:G25,G27:G42) -> 1090743 | H44: =SUM(H11:H16,H18:H25,H27:H42) -> 2186135 | I44: 1005603.27 | J44: 1005603.27 | K44: 697343.87 | L44: =+I44/H44 -> 0.4599913866 | M44: =+J44/H44 -> 0.4599913866 | N44: =+K44/H44 -> 0.3189848157
A46: Fuente: REPORTE SIAF 2018 AL 28 06 18
A47: Análisis:
A48: Callao - DREC
A49: En las especificas de gasto 2.3 por la fuente de financiamiento de recursos ordinarios presenta una ejecucion de S/75,889.97 que representa una ejecucion del 38.23% en el ambito familiar por concepto de adquisicion de utiles y materiales de oficina,material didactico,servicio de impresiones de material de difusion ,servicio de atrencion de break para las aplicaciones de familias fuertes y servicios de fotocopiado y grabacion de estuches con dvds para los docentes facilitadores .
A50: En las especificas de gasto 2.3 por la fuente de financiamiento de recursos ordinarios presenta una ejecucion de S/385,257.44 que representa una ejecucion del 43.35% de ejecucion en el ambito educativo por concepto de adquisicion de utiles y materiales de oficina , servicio de impresion de materiales de difusion lbretas afiches entre otros , servicio de reparacion y mantenimiento de impresoras y fotocopiadoras ,servicios de grabacion de material de difusion ,servicios de refrigerios y break ,pago de etr por la modalidad de cas y contribuciones a essalud de cas y pago de un facilitador por la modalidad de terceros .
A51: En las especificas de gasto 2.3 Y 2.6 por la fuente de financiamiento de Donaciones y transferencias presenta una ejecucion de S/236,196.46 que representa una ejecucion del 21.49 % de ejecucion en el ambito educativo por concepto de adquisicion de utiles y materiales de oficina servicio de impresion de material de difusion, ,servicios de grabacion y confeccion de materiales de difusion ,servicios de refrigerios y break ,asi mismo como la adquisicion de equuipos computacxionales y maquina y equipo.

Sheet VENTANILLAal 28-06
C2: REPORTE DE EJECUCIÓN PRESUPUESTAL DEL PP PTCD 0051 (ámbito educativo y familiar): POR GENÉRICA DE GASTO 2.3 Y 2.6, ESPECÍFICA DE GASTO Y POR TODA FUENTE DE FINACIAMIENTO (año 2018)
E3: AL 28 /06/18
C5: UNIDAD EJECUTORA | D5: ACTIVIDAD | E5: FUENTE DE FINANCIAMIENTO | F5: GENÉRICA DE GASTO | G5: ESPECÍFICA DE GASTO | H5: PIA | I5: PIM | J5: SIAF
J6: CERTIFICACIÓN | K6: COMPROMISO ANUAL | L6: EJECUCIÓN | M6: % CERTIFICACIÓN SIAF/PIM | N6: % COMPROMISO ANUAL SIAF/PIM | O6: % EJECUCIÓN
C7: 302 EDUCACION VENTANILA | D7: 5005229 PREVENCION CONSUMO DE DROGAS EN EL AMBITO FAMILIAR | E7: 1 RECURSOS ORDINARIOS | F7: 23 BIENES Y SERVICIOS | G7: 23.15.12 Papeleria ,utiles | H7: 0 | I7: 1500 | J7: 1500 | K7: 1500 | L7: 1500 | M7: =J7/I7 -> 1 | N7: =K7/I7 -> 1 | O7: =L7/I7 -> 1
C8: 302 EDUCACION VENTANILA | D8: 50052230PREVENCION CONSUMO DE DROGAS EN EL AMBITO EDUCATIVO | E8: 1 RECURSOS ORDINARIOS | F8: 23 BIENES Y SERVICIOS | G8: 23.15.12 Papeleria ,utiles | H8: 0 | I8: 2000 | J8: 1999.78 | K8: 1999.78 | L8: 1999.78 | M8: 0.99989 | N8: 0.99989 | O8: 0.99989
D9: TOTAL FUENTE 1 | H9: =+H7+H8 -> 0 | I9: =+I7+I8 -> 3500 | J9: =+J7+J8 -> 3499.78 | K9: 3499.78 | L9: 3499.78 | M9: 0.9999371429 | N9: 0.9999371429 | O9: 0.9999371429
C10: 302 EDUCACION VENTANILLA | D10: 5005230 PREVENCION DEL CONSUMO DE DROGAS EN EL AMBITO EDUCATIVO | E10: 4 DONACIONES Y TRANSFERENCIAS | F10: 23 BIENES Y SERVICIOS | G10: 23.19.12 Material Didactico | H10: 0 | I10: 30000 | J10: 29091.62 | K10: 29091.62 | L10: 29091.62 | M10: =J10/I10 -> 0.9697206667 | N10: =K10/I10 -> 0.9697206667 | O10: =L10/I10 -> 0.9697206667 | Q10: AMBITO FAMILIAR RO
G11: 23.1.11.11 Para edificios y estructuras | H11: 0 | I11: 2000 | J11: 2000 | K11: 2000 | L11: 2000 | M11: 1 | N11: 1 | O11: 1
G12: 23.22.44 Servicio de Impresiones | H12: 0 | I12: 105000 | J12: 25000 | K12: 25000 | L12: 25000 | M12: 0.2380952381 | N12: 0.2380952381 | O12: 0.2380952381
G13: 23.27.11.99 Servicios Diversos | H13: 0 | I13: 241000 | J13: 169354.98 | K13: 169354.98 | L13: 169354.98 | M13: 0.7027177593 | N13: 0.7027177593 | O13: 0.7027177593
D14: SUB TOTAL FUENTE 4 | H14: =+H10+H11+H12+H13 -> 0 | I14: =+I10+I11+I12+I13 -> 378000 | J14: 225446.6 | K14: 225446.6 | L14: 225446.6 | M14: 0.5964195767 | N14: 0.5964195767 | O14: 0.5964195767 | Q14: =SUM(L10:L14) -> 450893.2 | R14: 2.3 ROAMB FAM | S14: =SUM(Q14) -> 450893.2
C15: 302 EDUCACION VENTANILLA | D15: 5005230 PREVENCION DEL CONSUMO DE DROGAS EN EL AMBITO EDUCATIVO | E15: 4 DONACIONES Y TRANSFERENCIAS | F15: 26 ADQUISICION DE ACTIVOS NO FINANCIEROS | G15: 26.32.21 Maquinas y Equipos | H15: 0 | I15: 41500 | J15: 11500 | K15: 11500 | L15: 11500 | M15: 0.2771084337 | N15: 0.2771084337 | O15: 0.2771084337 | Q15: AMBITO EDUCATIVO RO
G16: 26.32.31 Equipos computacionales y perifericos | H16: 0 | I16: 38500 | J16: 8500 | K16: 8500 | L16: 8500 | M16: 0.2207792208 | N16: 0.2207792208 | O16: 0.2207792208
G17: 26.32.33 Equipos de telecomunicaciones | H17: 0 | I17: 23600 | J17: 14000 | K17: 14000 | L17: 14000 | M17: 0.593220339 | N17: 0.593220339 | O17: 0.593220339
D18: SUB TOTAL FUENTE 4 | H18: =+H15+H16+H17 -> 0 | I18: =+I15+I16+I17 -> 103600 | J18: 34000 | K18: 34000 | L18: 34000 | M18: 0.3281853282 | N18: 0.3281853282 | O18: 0.3281853282
D19: TOTAL FUENTE 4 | H19: =+H14+H18 -> 0 | I19: =+I14+I18 -> 481600 | J19: 259446.6 | K19: 259446.6 | L19: 259446.6 | M19: 0.5387180233 | N19: 0.5387180233 | O19: 0.5387180233
D21: TOTAL POR TODA FUENTE FINANCIAMIENTO | H21: =+H9+H19 -> 0 | I21: =+I9+I19 -> 485100 | J21: 262946.38 | K21: 262946.38 | L21: 262946.38 | M21: 0.5420457225 | N21: 0.5420457225 | O21: 0.5420457225
C25: Fuente: REPORTE SIAF 2018 - al 28-06-18
C26: Análisis:
C27: UGEL - VENTANILLA
C28: En las especificas de gasto 2.3 por la fuente de financiamiento de recursos ordinarios presenta una ejecucion de S/1,500 que representa una ejecucion del 100 % en el ambito familiar por concepto de adquisicion de utiles y materiales de oficina
C30: En las especificas de gasto 2.3 por la fuente de financiamiento de recursos ordinarios presenta una ejecucion de S/1999.78 que representa una ejecucion del 100 % de ejecucion en el ambito educativo por concepto de adquisicion de utiles y materiales de oficina
C32: En las especificas de gasto 2.6 por la fuente de financiamiento de Donaciones y transferencias presenta una ejecucion de S/262,946.38 que representa una ejecucion del 54.20 % de ejecucion en el ambito educativo por concepto de adquisicion de utiles y materiales de oficina

Sheet CONSOLIDADO REGIONALal 28 06
I3: CONSOLIDADO REGIONAL
A6: REPORTE DE EJECUCIÓN PRESUPUESTAL DEL PP PTCD 0051 (ámbito educativo y familiar): POR GENÉRICA DE GASTO 2.3 Y 2.6, ESPECÍFICA DE GASTO Y POR TODA FUENTE DE FINACIAMIENTO (año 2018)
A7: AL 28 /06/18
A9: UNIDAD EJECUTORA | C9: ACTIVIDAD | E9: FUENTE DE FINANCIAMIENTO | G9: GENÉRICA DE GASTO | H9: ESPECÍFICA DE GASTO | I9: NOMBRE DE LA ESPECIFICA | J9: PIA | K9: PIM | L9: SIAF
L10: CERTIFICACIÓN | M10: COMPROMISO ANUAL | N10: EJECUCIÓN | O10: % CERTIFICACIÓN SIAF/PIM | P10: % COMPROMISO ANUAL SIAF/PIM | Q10: % EJECUCIÓN
A11: 300 | B11: CALLAO | C11: 5005229 | D11: AMB FAMILIAR | E11: 1 | F11: RO | G11: 23 | H11: 23 1 5 1 2 | I11: PAPELERIA EN GRAL UTILES Y MATERIALES DE OFICINA | J11: 0 | K11: 6500 | L11: 3046 | M11: 3046 | N11: 3046 | O11: =+L11/K11 -> 0.4686153846 | P11: =+M11/K11 -> 0.4686153846 | Q11: =+N11/K11 -> 0.4686153846
A12: 300 | B12: CALLAO | C12: 5005229 | D12: AMB FAMILIAR | E12: 1 | F12: RO | G12: 23 | H12: 23 1 9 1 2 | I12: MATERIAL DIDACTICO,ACCSESORIOS Y UTILES DE ENSEÑANZA | J12: 0 | K12: 13000 | L12: 11214.21 | M12: 11214.21 | N12: 10891.57 | O12: =+L12/K12 -> 0.8626315385 | P12: =+M12/K12 -> 0.8626315385 | Q12: =+N12/K12 -> 0.8378130769
A13: 300 | B13: CALLAO | C13: 5005229 | D13: AMB FAMILIAR | E13: 1 | F13: RO | G13: 23 | H13: 23 2 1 299 | I13: OTROS GASTOS | J13: 0 | K13: 60345 | L13: 0 | M13: 0 | N13: 0 | O13: 0 | P13: 0 | Q13: 0
A14: 300 | B14: CALLAO | C14: 5005229 | D14: AMB FAMILIAR | E14: 1 | F14: RO | G14: 23 | H14: 23 2 2 4 4 | I14: SERVICIO DE IMPRESIONES ENCUADERNACION Y EMPASTADO | J14: 0 | K14: 13000 | L14: 12950 | M14: 12950 | N14: 12950 | O14: 0.9961538462 | P14: 0.9961538462 | Q14: 0.9961538462
A15: 300 | B15: CALLAO | C15: 5005229 | D15: AMB FAMILIAR | E15: 1 | F15: RO | G15: 23 | H15: 23 2 7 3 2 | I15: RELAIZADO POR PERSONAS NATURALES | J15: 0 | K15: 3000 | L15: 3000 | M15: 3000 | N15: 0 | O15: 1 | P15: 1 | Q15: 0
A16: 300 | B16: CALLAO | C16: 5005229 | D16: AMB FAMILIAR | E16: 1 | F16: RO | G16: 23 | H16: 23 2 71199 | I16: SERVICIOS DIVERSOS | J16: 200000 | K16: 102655 | L16: 86592.4 | M16: 86592.4 | N16: 49002.4 | O16: 0.843528323 | P16: 0.843528323 | Q16: 0.4773503483
A17: 302 | B17: VENTAN | C17: 5005229 | D17: AMB FAMILIAR | E17: 1 | F17: RO | G17: 23 | H17: 23 1 5 1 2 | I17: PAPELERIA EN GRAL UTILES Y MATERIALES DE OFICINA | J17: 0 | K17: 1500 | L17: 1500 | M17: 1500 | N17: 1500 | O17: =L17/K17 -> 1 | P17: =M17/K17 -> 1 | Q17: =N17/K17 -> 1
A18: TOTAL 23 AMBITO FAM RO CALLAO Y VENTANILLA | J18: =SUM(J11:J17) -> 200000 | K18: =SUM(K11:K17) -> 200000 | L18: 118302.61 | M18: 118302.61 | N18: 77389.97 | O18: 0.59151305 | P18: 0.59151305 | Q18: 0.38694985
A19: 300 | B19: CALLAO | C19: 5005230 | D19: AMBITO EDUC | E19: 1 | F19: RO | G19: 23 | H19: 23 1 5 1 2 | I19: PAPELERIA EN GRAL UTILES Y MATERIALES DE OFICINA | J19: 0 | K19: 13000 | L19: 8027.92 | M19: 8027.92 | N19: 8027.92 | O19: 0.6175323077 | P19: 0.6175323077 | Q19: 0.6175323077
A20: 300 | B20: CALLAO | C20: 5005230 | D20: AMBITO EDUC | E20: 1 | F20: RO | G20: 23 | H20: 23 2 1 299 | I20: OTROS GASTOS | J20: 0 | K20: 15100 | L20: 0 | M20: 0 | N20: 0 | O20: 0 | P20: 0 | Q20: 0
A21: 300 | B21: CALLAO | C21: 5005230 | D21: AMBITO EDUC | E21: 1 | F21: RO | G21: 23 | H21: 23 2 2 4 4 | I21: SERVICIO DE IMPRESIONES ENCUADERNACION Y EMPASTADO | J21: 0 | K21: 3200 | L21: 0 | M21: 0 | N21: 0 | O21: 0 | P21: 0 | Q21: 0
A22: 300 | B22: CALLAO | C22: 5005230 | D22: AMBITO EDUC | E22: 1 | F22: RO | G22: 23 | H22: 23 2 4 1 5 | I22: DE MAQUINAS Y EQUIPO | J22: 0 | K22: 16000 | L22: 12300 | M22: 12300 | N22: 12300 | O22: 0.76875 | P22: 0.76875 | Q22: 0.76875
A23: 300 | B23: CALLAO | C23: 5005230 | D23: AMBITO EDUC | E23: 1 | F23: RO | G23: 23 | H23: 23 2 7 299 | I23: OTROS SERVICIOS SIMILARES | J23: 0 | K23: 13840 | L23: 13840 | M23: 13840 | N23: 13840 | O23: 1 | P23: 1 | Q23: 1
A24: 300 | B24: CALLAO | C24: 5005230 | D24: AMBITO EDUC | E24: 1 | F24: RO | G24: 23 | H24: 23 2 71199 | I24: SERVICIOS DIVERSOS | J24: 571349 | K24: 161209 | L24: 129306.28 | M24: 129306.28 | N24: 78556.28 | O24: 0.8021033565 | P24: 0.8021033565 | Q24: 0.48729463
A25: 300 | B25: CALLAO | C25: 5005230 | D25: AMBITO EDUC | E25: 1 | F25: RO | G25: 23 | H25: 23 2 8 1 1 | I25: CONTRATO ADMINISTRATIVO DE SERVICIOS | J25: 307496 | K25: 645438 | L25: 413536 | M25: 413536 | N25: 262930.24 | O25: 0.6407060012 | P25: 0.6407060012 | Q25: 0.4073671522
A26: 300 | B26: CALLAO | C26: 5005230 | D26: AMBITO EDUC | E26: 1 | F26: RO | G26: 23 | H26: 23 2 8 1 2 | I26: CONTRIBUCIONES A ESSALUD DE LOS CAS | J26: 11898 | K26: 20956 | L26: 16218 | M26: 16218 | N26: 9603 | O26: 0.7739072342 | P26: 0.7739072342 | Q26: 0.4582458484
A27: 302 | B27: VENTAN | C27: 5005230 | D27: AMBITO EDUC | E27: 1 | F27: RO | G27: 23 | H27: 23 1 5 1 2 | I27: PAPELERIA EN GRAL UTILES Y MATERIALES DE OFICINA | J27: 0 | K27: 2000 | L27: 1999.78 | M27: 1999.78 | N27: 1999.78 | O27: =L27/K27 -> 0.99989 | P27: =M27/K27 -> 0.99989 | Q27: =N27/K27 -> 0.99989
A28: TOTAL 23 AMBITO ERDUCATIVO RO CALLAO Y VENTANILLA | J28: =SUM(J19:J27) -> 890743 | K28: =SUM(K19:K27) -> 890743 | L28: 595227.98 | M28: 595227.98 | N28: 387257.22 | O28: 0.6682376174 | P28: 0.6682376174 | Q28: 0.4347575227
A29: 300 | B29: CALLAO | C29: 5005230 | D29: AMBITO EDUC | E29: 4 | F29: DYT | G29: 23 | H29: 23 1 1 1 1 | I29: ALIMENTOS Y BEBIDAS PARA CONSUMO HUMANO | J29: 0 | K29: 32000 | L29: 0 | M29: 0 | N29: 0 | O29: 0 | P29: 0 | Q29: 0
A30: 300 | B30: CALLAO | C30: 5005230 | D30: AMBITO EDUC | E30: 4 | F30: DYT | G30: 23 | H30: 23 1 5 1 1 | I30: REPUESTOS Y ACCSESORIOS | J30: 0 | K30: 15000 | L30: 0 | M30: 0 | N30: 0 | O30: 0 | P30: 0 | Q30: 0
A31: 300 | B31: CALLAO | C31: 5005230 | D31: AMBITO EDUC | E31: 4 | F31: DYT | G31: 23 | H31: 23 1 5 1 2 | I31: PAPELERIA EN GRAL UTILES Y MATERIALES DE OFICINA | J31: 0 | K31: 65000 | L31: 0 | M31: 0 | N31: 0 | O31: 0 | P31: 0 | Q31: 0
A32: 300 | B32: CALLAO | C32: 5005230 | D32: AMBITO EDUC | E32: 4 | F32: DYT | G32: 23 | H32: 23 1 5 3 1 | I32: ASEO LIMPIEZA Y TOCADOR | J32: 0 | K32: 3800 | L32: 0 | M32: 0 | N32: 0 | O32: 0 | P32: 0 | Q32: 0
A33: 300 | B33: CALLAO | C33: 5005230 | D33: AMBITO EDUC | E33: 4 | F33: DYT | G33: 23 | H33: 23 1 9 1 2 | I33: MATERIAL DIDACTICO,ACCSESORIOS Y UTILES DE ENSEÑANZA | J33: 0 | K33: 53316 | L33: 35225.96 | M33: 35225.96 | N33: 35225.96 | O33: 0.660701478 | P33: 0.660701478 | Q33: 0.660701478
A34: 300 | B34: CALLAO | C34: 5005230 | D34: AMBITO EDUC | E34: 4 | F34: DYT | G34: 23 | H34: 23 111 1 1 | I34: PARA EDIFICIOS Y ESTRUCTURAS | J34: 0 | K34: 3534 | L34: 2700 | M34: 2700 | N34: 2700 | O34: 0.7640067912 | P34: 0.7640067912 | Q34: 0.7640067912
A35: 300 | B35: CALLAO | C35: 5005230 | D35: AMBITO EDUC | E35: 4 | F35: DYT | G35: 23 | H35: 23 2 2 4 4 | I35: SERVICIO DE IMPRESIONES ENCUADERNACION Y EMPASTADO | J35: 0 | K35: 201369 | L35: 74411 | M35: 74411 | N35: 37661 | O35: 0.3695255973 | P35: 0.3695255973 | Q35: 0.1870248151
A36: 300 | B36: CALLAO | C36: 5005230 | D36: AMBITO EDUC | E36: 4 | F36: DYT | G36: 23 | H36: 23 2 4 1 5 | I36: DE MAQUINARIAS Y EQUIPO | J36: 0 | K36: 6000 | L36: 0 | M36: 0 | N36: 0 | O36: 0 | P36: 0 | Q36: 0
A37: 300 | B37: CALLAO | C37: 5005230 | D37: AMBITO EDUC | E37: 4 | F37: DYT | G37: 23 | H37: 23 2 7 299 | I37: OTROS SERVICIOS SIMILARES | J37: 0 | K37: 72660 | L37: 6920 | M37: 6920 | N37: 6920 | O37: 0.09523809524 | P37: 0.09523809524 | Q37: 0.09523809524
A38: 300 | B38: CALLAO | C38: 5005230 | D38: AMBITO EDUC | E38: 4 | F38: DYT | G38: 23 | H38: 23 2 71199 | I38: SERVICIOS DIVERSOS | J38: 0 | K38: 457433 | L38: 152159 | M38: 152159 | N38: 129533 | O38: 0.3326366921 | P38: 0.3326366921 | Q38: 0.2831737107
A39: 300 | B39: CALLAO | C39: 5005230 | D39: AMBITO EDUC | E39: 4 | F39: DYT | G39: 26 | H39: 26 3 2 1 1 | I39: MAQUINAS Y EQUIPO | J39: 0 | K39: 18000 | L39: 4515.33 | M39: 4515.33 | N39: 4515.33 | O39: 0.2508516667 | P39: 0.2508516667 | Q39: 0.2508516667
A40: 300 | B40: CALLAO | C40: 5005230 | D40: AMBITO EDUC | E40: 4 | F40: DYT | G40: 26 | H40: 26 3 2 1 2 | I40: MOBILIARIO | J40: 0 | K40: 12000 | L40: 0 | M40: 0 | N40: 0 | O40: 0 | P40: 0 | Q40: 0
A41: 300 | B41: CALLAO | C41: 5005230 | D41: AMBITO EDUC | E41: 4 | F41: DYT | G41: 26 | H41: 26 3 2 2 1 | I41: MAQUINAS Y EQUIPO PARA IIEE | J41: 0 | K41: 9000 | L41: 0 | M41: 0 | N41: 0 | O41: 0 | P41: 0 | Q41: 0
A42: 300 | B42: CALLAO | C42: 5005230 | D42: AMBITO EDUC | E42: 4 | F42: DYT | G42: 26 | H42: 26 3 2 2 2 | I42: MOBILIARIO PARA IIEE | J42: 0 | K42: 3000 | L42: 0 | M42: 0 | N42: 0 | O42: 0 | P42: 0 | Q42: 0
A43: 300 | B43: CALLAO | C43: 5005230 | D43: AMBITO EDUC | E43: 4 | F43: DYT | G43: 26 | H43: 26 3 2 3 1 | I43: EQUIPOS COMPUTACIONALES Y PERIFERICOS | J43: 0 | K43: 102060 | L43: 19641.17 | M43: 19641.17 | N43: 19641.17 | O43: 0.1924472859 | P43: 0.1924472859 | Q43: 0.1924472859
A44: 300 | B44: CALLAO | C44: 5005230 | D44: AMBITO EDUC | E44: 4 | F44: DYT | G44: 26 | H44: 26 3 2 3 3 | I44: EQUIPOS DE TELECOMUNICACIONES | J44: 0 | K44: 44720 | L44: 0 | M44: 0 | N44: 0 | O44: 0 | P44: 0 | Q44: 0
A45: 302 | B45: VENTAN | C45: 5005230 | D45: AMBITO EDUC | E45: 4 | F45: DYT | G45: 23 | H45: 23 1 9 1 2 | I45: MATERIAL DIDACTICO,ACCSESORIOS Y UTILES DE ENSEÑANZA | J45: 0 | K45: 30000 | L45: 29091.62 | M45: 29091.62 | N45: 29091.62 | O45: =L45/K45 -> 0.9697206667 | P45: =M45/K45 -> 0.9697206667 | Q45: =N45/K45 -> 0.9697206667
A46: 302 | B46: VENTAN | C46: 5005230 | D46: AMBITO EDUC | E46: 4 | F46: DYT | G46: 23 | H46: 23 111 1 1 | I46: PARA EDIFICIOS Y ESTRUCTURAS | J46: 0 | K46: 2000 | L46: 2000 | M46: 2000 | N46: 2000 | O46: 1 | P46: 1 | Q46: 1
A47: 302 | B47: VENTAN | C47: 5005230 | D47: AMBITO EDUC | E47: 4 | F47: DYT | G47: 23 | H47: 23 2 2 4 4 | I47: SERVICIO DE IMPRESIONES ENCUADERNACION Y EMPASTADO | J47: 0 | K47: 105000 | L47: 25000 | M47: 25000 | N47: 25000 | O47: 0.2380952381 | P47: 0.2380952381 | Q47: 0.2380952381
A48: 302 | B48: VENTAN | C48: 5005230 | D48: AMBITO EDUC | E48: 4 | F48: DYT | G48: 23 | H48: 23 2 71199 | I48: SERVICIOS DIVERSOS | J48: 0 | K48: 241000 | L48: 169354.98 | M48: 169354.98 | N48: 169354.98 | O48: 0.7027177593 | P48: 0.7027177593 | Q48: 0.7027177593
A49: 302 | B49: VENTAN | C49: 5005230 | D49: AMBITO EDUC | E49: 4 | F49: DYT | G49: 26 | H49: 26 3 2 2 1 | I49: MAQUINAS Y EQUIPO PARA IIEE | J49: 0 | K49: 41500 | L49: 11500 | M49: 11500 | N49: 11500 | O49: 0.2771084337 | P49: 0.2771084337 | Q49: 0.2771084337
A50: 302 | B50: VENTAN | C50: 5005230 | D50: AMBITO EDUC | E50: 4 | F50: DYT | G50: 26 | H50: 26 3 2 3 1 | I50: EQUIPOS COMPUTACIONALES Y PERIFERICOS | J50: 0 | K50: 38500 | L50: 8500 | M50: 8500 | N50: 8500 | O50: 0.2207792208 | P50: 0.2207792208 | Q50: 0.2207792208
A51: 302 | B51: VENTAN | C51: 5005230 | D51: AMBITO EDUC | E51: 4 | F51: DYT | G51: 26 | H51: 26 3 2 3 3 | I51: EQUIPOS DE TELECOMUNICACIONES | J51: 0 | K51: 23600 | L51: 14000 | M51: 14000 | N51: 14000 | O51: 0.593220339 | P51: 0.593220339 | Q51: 0.593220339
A52: TOTAL 23 Y 26 AMBITO EDUCATIVO DY T CALLAO Y VENTANILLA | J52: =SUM(J29:J51) -> 0 | K52: =SUM(K29:K51) -> 1580492 | L52: 555019.06 | M52: 555019.06 | N52: 495643.06 | O52: 0.3511685349 | P52: 0.3511685349 | Q52: 0.3136004864
A53: TOTAL | J53: =SUM(J18,J28,J52) -> 1090743 | K53: =SUM(K18,K28,K52) -> 2671235 | L53: 1268549.65 | M53: 1268549.65 | N53: 960290.25 | O53: =+L53/K53 -> 0.4748925684 | P53: =+M53/K53 -> 0.4748925684 | Q53: =+N53/K53 -> 0.3594929873
A55: Fuente: REPORTE SIAF 2018 AL 28 06 18
A56: Análisis:
A57: Consolidadado CALLAO - VENTANILLA
A58: En las especificas de gasto 2.3 por la fuente de financiamiento de recursos ordinarios presenta una ejecucion de S/77,389.97 que representa una ejecucion del 38.69% en el ambito familiar por concepto de adquisicion de utiles y materiales de oficina,material didactico,servicio de impresiones de material de difusion ,servicio de atrencion de break para las aplicaciones de familias fuertes y servicios de fotocopiado y grabacion de estuches con dvds para los docentes facilitadores .
A59: En las especificas de gasto 2.3 por la fuente de financiamiento de recursos ordinarios presenta una ejecucion de S/387,257.22 que representa una ejecucion del 43.48% de ejecucion en el ambito educativo por concepto de adquisicion de utiles y materiales de oficina , servicio de impresion de materiales de difusion lbretas afiches entre otros , servicio de reparacion y mantenimiento de impresoras y fotocopiadoras ,servicios de grabacion de material de difusion ,servicios de refrigerios y break ,pago de etr por la modalidad de cas y contribuciones a essalud de cas y pago de un facilitador por la modalidad de terceros .
A60: En las especificas de gasto 2.3 Y 2.6 por la fuente de financiamiento de Donaciones y transferencias presenta una ejecucion de S/495,643.06 que representa una ejecucion del 31.36 % de ejecucion en el ambito educativo por concepto de adquisicion de utiles y materiales de oficina servicio de impresion de material de difusion, ,servicios de grabacion y confeccion de materiales de difusion ,servicios de refrigerios y break ,asi mismo como la adquisicion de equuipos computacxionales y maquina y equipo.
